[Event "Polofinale MCR junioru 2023"]
[Site "Czech Republic"]
[Date "2023.11.18"]
[Round "9.6"]
[White "Vilimek, Vit"]
[Black "Tillman, Stanislav"]
[Result "1/2-1/2"]
[TimeControl "90 min per 40 moves + 15 min + 30 sec / move from move 1"]
[WhiteFideId "23718218"]
[BlackFideId "23714247"]
[WhiteElo "2163"]
[BlackElo "2021"]

1. e4 {[%clk 01:30:56]} {[%emt 00:00:04]} c5 {[%clk 01:30:52]} {[%emt
00:00:09]} 2. b3 {[%clk 01:31:17]} {[%emt 00:00:08]} Nc6 {[%clk 01:29:40]}
{[%emt 00:01:42]} 3. Bb2 {[%clk 01:31:29]} {[%emt 00:00:18]} e5 {[%clk
01:26:03]} {[%emt 00:04:08]} 4. Bb5 {[%clk 01:29:59]} {[%emt 00:01:59]} d6
{[%clk 01:23:43]} {[%emt 00:02:50]} 5. Bxc6+ {[%clk 01:30:20]} {[%emt
00:00:09]} bxc6 {[%clk 01:24:09]} {[%emt 00:00:04]} 6. d3 {[%clk 01:30:04]}
{[%emt 00:00:46]} Nf6 {[%clk 01:22:33]} {[%emt 00:02:06]} 7. Ne2 {[%clk
01:29:59]} {[%emt 00:00:35]} Qc7 {[%clk 01:16:31]} {[%emt 00:06:33]} 8. f4
{[%clk 01:13:04]} {[%emt 00:17:25]} exf4 {[%clk 00:54:49]} {[%emt 00:22:11]} 9.
Nxf4 {[%clk 01:10:39]} {[%emt 00:02:55]} d5 {[%clk 00:51:37]} {[%emt 00:03:43]}
10. O-O {[%clk 01:03:39]} {[%emt 00:07:29]} Be7 {[%clk 00:46:27]} {[%emt
00:05:40]} 11. Qf3 {[%clk 00:35:55]} {[%emt 00:28:14]} Bg4 {[%clk 00:38:47]}
{[%emt 00:08:10]} 12. Qg3 {[%clk 00:34:09]} {[%emt 00:02:16]} h5 {[%clk
00:36:37]} {[%emt 00:02:40]} 13. Nxh5 {[%clk 00:31:39]} {[%emt 00:03:00]} Qxg3
{[%clk 00:31:10]} {[%emt 00:05:57]} 14. Nxg3 {[%clk 00:32:06]} {[%emt
00:00:03]} dxe4 {[%clk 00:30:56]} {[%emt 00:00:44]} 15. dxe4 {[%clk 00:26:31]}
{[%emt 00:06:05]} O-O-O {[%clk 00:27:40]} {[%emt 00:03:46]} 16. c4 {[%clk
00:22:35]} {[%emt 00:04:26]} Nh5 {[%clk 00:23:36]} {[%emt 00:04:34]} 17. Nxh5
{[%clk 00:11:58]} {[%emt 00:11:07]} Rxh5 {[%clk 00:24:01]} {[%emt 00:00:05]} 18.
h3 {[%clk 00:06:07]} {[%emt 00:06:21]} Bg5 {[%clk 00:22:46]} {[%emt 00:01:45]}
19. Re1 {[%clk 00:06:31]} {[%emt 00:00:06]} Be6 {[%clk 00:16:48]} {[%emt
00:06:28]} 20. Na3 {[%clk 00:02:26]} {[%emt 00:04:35]} Rd3 {[%clk 00:14:04]}
{[%emt 00:03:14]} 21. Rad1 {[%clk 00:00:45]} {[%emt 00:02:11]} Rg3 {[%clk
00:14:28]} {[%emt 00:00:06]} 22. Be5 {[%clk 00:00:50]} {[%emt 00:00:25]} Re3
{[%clk 00:03:28]} {[%emt 00:11:29]} 23. Bh2 {[%clk 00:00:49]} {[%emt 00:00:32]}
Rh4 {[%clk 00:02:53]} {[%emt 00:01:05]} 24. Nc2 {[%clk 00:00:47]} {[%emt
00:00:32]} Rexe4 {[%clk 00:02:34]} {[%emt 00:00:49]} 25. Bg3 {[%clk 00:00:47]}
{[%emt 00:00:30]} Rxe1+ {[%emt 00:00:22]} 26. Rxe1 {[%clk 00:01:13]} {[%emt
00:00:02]} Rh8 {[%clk 00:02:51]} {[%emt 00:00:23]} 27. Bd6 {[%clk 00:00:44]}
{[%emt 00:00:59]} Rd8 {[%clk 00:01:11]} {[%emt 00:02:10]} 28. Bxc5 {[%clk
00:01:00]} {[%emt 00:00:14]} Rd2 {[%clk 00:01:22]} {[%emt 00:00:20]} 29. Nd4
{[%clk 00:01:18]} {[%emt 00:00:12]} Rxa2 {[%clk 00:00:32]} {[%emt 00:01:19]} 30.
Nxe6 {[%clk 00:01:11]} {[%emt 00:00:37]} fxe6 {[%clk 00:00:59]} {[%emt
00:00:04]} 31. Rxe6 {[%clk 00:01:27]} {[%emt 00:00:14]} Kd7 {[%clk 00:00:36]}
{[%emt 00:00:52]} 32. Rg6 {[%clk 00:01:30]} {[%emt 00:00:27]} Bf6 {[%clk
00:00:45]} {[%emt 00:00:21]} 33. Bf8 {[%clk 00:01:43]} {[%emt 00:00:18]} Bd4+
{[%clk 00:00:37]} {[%emt 00:00:38]} 34. Kh1 {[%clk 00:01:42]} {[%emt 00:00:30]}
Ra1+ {[%clk 00:00:40]} {[%emt 00:00:27]} 35. Kh2 {[%clk 00:02:07]} {[%emt
00:00:04]} Be5+ {[%clk 00:01:02]} {[%emt 00:00:09]} 36. g3 {[%clk 00:02:36]}
{[%emt 00:00:01]} Ra2+ {[%clk 00:01:15]} {[%emt 00:00:17]} 37. Kh1 {[%clk
00:02:19]} {[%emt 00:00:46]} Ra1+ {[%clk 00:01:05]} {[%emt 00:00:41]} 38. Kg2
{[%clk 00:02:45]} {[%emt 00:00:03]} Ra2+ {[%clk 00:01:22]} {[%emt 00:00:15]} 39.
Kf3 {[%clk 00:02:55]} {[%emt 00:00:19]} Ke8 {[%clk 00:00:45]} {[%emt 00:01:07]}
40. Re6+ {[%clk 00:01:20]} {[%emt 00:02:05]} Kxf8 {[%clk 00:01:03]} {[%emt
00:00:12]} 41. Rxe5 {[%clk 00:00:56]} {[%emt 00:00:54]} Ra3 {[%clk 00:00:31]}
{[%emt 00:01:02]} 42. Re3 {[%clk 00:01:22]} {[%emt 00:00:04]} a5 {[%clk
00:14:22]} {[%emt 00:02:10]} 43. Ke4 {[%clk 00:14:27]} {[%emt 00:03:25]} Ke7
{[%clk 00:14:07]} {[%emt 00:00:45]} 44. Kd4+ {[%clk 00:13:31]} {[%emt
00:01:26]} Kd6 {[%clk 00:13:15]} {[%emt 00:01:22]} 45. c5+ {[%clk 00:13:56]}
{[%emt 00:00:05]} Kd7 {[%clk 00:13:41]} {[%emt 00:00:04]} 46. Kc3 {[%clk
00:13:26]} {[%emt 00:00:59]} Ra1 {[%clk 00:13:50]} {[%emt 00:00:21]} 47. Rd3+
{[%clk 00:13:53]} {[%emt 00:00:04]} Ke7 {[%clk 00:10:45]} {[%emt 00:03:35]} 48.
Kb2 {[%clk 00:13:46]} {[%emt 00:00:37]} Rg1 {[%clk 00:09:47]} {[%emt 00:01:27]}
49. Rd6 {[%clk 00:07:12]} {[%emt 00:07:04]} Rxg3 {[%clk 00:10:11]} {[%emt
00:00:07]} 50. Rxc6 {[%clk 00:07:41]} {[%emt 00:00:01]} Rxh3 {[%clk 00:10:14]}
{[%emt 00:00:26]} 51. Ra6 {[%clk 00:06:36]} {[%emt 00:01:35]} Rh6 {[%clk
00:09:50]} {[%emt 00:00:54]} 52. Rxa5 {[%clk 00:05:52]} {[%emt 00:01:15]} g5
{[%clk 00:10:06]} {[%emt 00:00:13]} 53. Ra7+ {[%clk 00:06:12]} {[%emt
00:00:11]} Kf8 {[%clk 00:09:28]} {[%emt 00:01:07]} 54. Ra4 {[%clk 00:01:54]}
{[%emt 00:04:49]} Rh4 {[%clk 00:08:28]} {[%emt 00:01:29]} 55. Ra1 {[%clk
00:01:41]} {[%emt 00:00:43]} Ke7 {[%clk 00:06:03]} {[%emt 00:02:56]} 56. Rg1
{[%clk 00:01:21]} {[%emt 00:00:50]} g4 {[%clk 00:06:00]} {[%emt 00:00:33]} 57.
Ka3 {[%clk 00:01:37]} {[%emt 00:00:13]} Kd7 {[%clk 00:05:41]} {[%emt 00:00:50]}
58. b4 {[%clk 00:01:40]} {[%emt 00:00:27]} Rh3+ {[%clk 00:05:01]} {[%emt
00:01:10]} 59. Ka4 {[%clk 00:02:03]} {[%emt 00:00:07]} g3 {[%clk 00:05:26]}
{[%emt 00:00:05]} 60. Kb5 {[%clk 00:02:28]} {[%emt 00:00:04]} Kc7 {[%clk
00:05:47]} {[%emt 00:00:10]} 61. Rg2 {[%clk 00:02:11]} {[%emt 00:00:47]} Kb7
{[%clk 00:05:55]} {[%emt 00:00:22]} 62. Rg1 {[%clk 00:01:33]} {[%emt 00:01:08]}
Kc7 {[%clk 00:06:13]} {[%emt 00:00:12]} 63. Ka5 {[%clk 00:01:54]} {[%emt
00:00:07]} Kc6 {[%clk 00:06:12]} {[%emt 00:00:33]} 64. Rc1 {[%clk 00:00:34]}
{[%emt 00:01:50]} g2 {[%clk 00:06:20]} {[%emt 00:00:21]} 65. b5+ {[%clk
00:01:00]} {[%emt 00:00:05]} Kc7 {[%clk 00:06:22]} {[%emt 00:00:28]} 66. Rg1
{[%clk 00:00:35]} {[%emt 00:00:55]} Rg3 {[%clk 00:06:39]} {[%emt 00:00:13]} 67.
Kb4 {[%clk 00:00:35]} {[%emt 00:00:30]} Rg4+ {[%clk 00:06:42]} {[%emt
00:00:27]} 68. Kc3 {[%clk 00:00:44]} {[%emt 00:00:21]} Rg3+ {[%clk 00:06:56]}
{[%emt 00:00:16]} 69. Kd4 {[%clk 00:00:44]} {[%emt 00:00:30]} Rg4+ {[%clk
00:06:23]} {[%emt 00:01:03]} 70. Kc3 {[%clk 00:00:42]} {[%emt 00:00:32]} Rg3+
{[%clk 00:06:44]} {[%emt 00:00:09]} 71. Kc4 {[%clk 00:01:03]} {[%emt 00:00:08]}
Rg4+ {[%clk 00:07:00]} {[%emt 00:00:15]} 72. Kb3 {[%clk 00:01:19]} {[%emt
00:00:14]} Rg3+ {[%clk 00:07:25]} {[%emt 00:00:05]} 73. Ka4 {[%clk 00:01:46]}
{[%emt 00:00:03]} Rg4+ {[%clk 00:07:17]} {[%emt 00:00:38]} 74. Ka5 {[%clk
00:02:14]} {[%emt 00:00:02]} Rg3 {[%clk 00:07:09]} {[%emt 00:00:38]} 75. c6
{[%clk 00:02:06]} {[%emt 00:00:37]} Rg4 {[%clk 00:06:44]} {[%emt 00:00:55]} 76.
b6+ {[%clk 00:01:42]} {[%emt 00:00:55]} Kxc6 {[%clk 00:07:10]} {[%emt
00:00:04]} 77. Rc1+ {[%clk 00:01:37]} {[%emt 00:00:35]} Kb7 {[%clk 00:07:19]}
{[%emt 00:00:21]} 78. Rg1 {[%clk 00:02:02]} {[%emt 00:00:05]} Rg5+ {[%clk
00:07:43]} {[%emt 00:00:06]} 79. Kb4 {[%clk 00:02:30]} {[%emt 00:00:02]} Kxb6
{[%clk 00:08:11]} {[%emt 00:00:03]} 80. Kc3 {[%clk 00:02:56]} {[%emt 00:00:03]}
Kc5 {[%clk 00:08:15]} {[%emt 00:00:26]} 81. Kd3 {[%clk 00:03:24]} {[%emt
00:00:01]} Kd5 {[%clk 00:08:28]} {[%emt 00:00:17]} 82. Ke3 {[%clk 00:03:52]}
{[%emt 00:00:02]} Ke5 {[%clk 00:08:49]} {[%emt 00:00:09]} 83. Kf3 {[%clk
00:04:17]} {[%emt 00:00:05]} Kf5 {[%clk 00:09:14]} {[%emt 00:00:06]} 84. Rxg2
{[%clk 00:04:42]} {[%emt 00:00:05]} Rxg2 {[%clk 00:09:39]} {[%emt 00:00:04]} 85.
Kxg2 {[%clk 00:05:08]} {[%emt 00:00:05]} 1/2-1/2

[Event "Polofinale MCR junioru 2023"]
[Site "Czech Republic"]
[Date "2023.11.18"]
[Round "9.7"]
[White "Svacina, Tobias"]
[Black "Skypala, Ondrej"]
[Result "0-1"]
[TimeControl "90 min per 40 moves + 15 min + 30 sec / move from move 1"]
[WhiteFideId "385859"]
[BlackFideId "366285"]
[WhiteElo "1941"]
[BlackElo "2159"]

1. e4 {[%clk 01:30:19]} {[%emt 00:00:40]} e6 {[%clk 01:21:01]} {[%emt
00:09:52]} 2. d4 {[%clk 01:29:55]} {[%emt 00:01:02]} d5 {[%clk 01:21:26]}
{[%emt 00:00:05]} 3. Nc3 {[%clk 01:29:13]} {[%emt 00:01:13]} Nf6 {[%clk
01:21:50]} {[%emt 00:00:05]} 4. Bg5 {[%clk 01:27:54]} {[%emt 00:01:49]} Be7
{[%clk 01:22:16]} {[%emt 00:00:03]} 5. e5 {[%clk 01:27:23]} {[%emt 00:01:02]}
Nfd7 {[%clk 01:22:41]} {[%emt 00:00:05]} 6. h4 {[%clk 01:27:19]} {[%emt
00:00:35]} h6 {[%clk 01:23:07]} {[%emt 00:00:04]} 7. Bxe7 {[%clk 01:26:24]}
{[%emt 00:01:24]} Qxe7 {[%clk 01:23:32]} {[%emt 00:00:05]} 8. f4 {[%clk
01:25:49]} {[%emt 00:01:04]} O-O {[%clk 01:23:57]} {[%emt 00:00:06]} 9. Nf3
{[%clk 01:24:42]} {[%emt 00:01:37]} c5 {[%clk 01:24:10]} {[%emt 00:00:17]} 10.
Qd2 {[%clk 01:23:13]} {[%emt 00:01:59]} Nc6 {[%clk 01:24:34]} {[%emt 00:00:05]}
11. Ne2 {[%clk 01:22:16]} {[%emt 00:01:27]} f6 {[%clk 01:22:31]} {[%emt
00:02:34]} 12. c3 {[%clk 01:19:51]} {[%emt 00:02:55]} b5 {[%clk 01:21:39]}
{[%emt 00:01:22]} 13. Ng3 {[%clk 01:11:50]} {[%emt 00:08:32]} Rb8 {[%clk
01:15:43]} {[%emt 00:06:26]} 14. Bd3 {[%clk 01:07:35]} {[%emt 00:04:45]} b4
{[%clk 01:15:31]} {[%emt 00:00:42]} 15. O-O {[%clk 01:01:58]} {[%emt 00:06:06]}
bxc3 {[%clk 01:15:56]} {[%emt 00:00:06]} 16. bxc3 {[%clk 01:02:24]} {[%emt
00:00:04]} cxd4 {[%clk 01:15:59]} {[%emt 00:00:26]} 17. cxd4 {[%clk 01:01:36]}
{[%emt 00:01:18]} Nb6 {[%clk 01:10:48]} {[%emt 00:05:41]} 18. a3 {[%clk
00:51:20]} {[%emt 00:10:47]} Bd7 {[%clk 01:10:28]} {[%emt 00:00:49]} 19. Ne2
{[%clk 00:49:20]} {[%emt 00:02:30]} f5 {[%clk 01:09:39]} {[%emt 00:01:20]} 20.
Nc3 {[%clk 00:48:57]} {[%emt 00:00:53]} Na5 {[%clk 01:09:05]} {[%emt 00:01:04]}
21. Nxd5 {[%clk 00:39:52]} {[%emt 00:09:34]} Nxd5 {[%clk 01:09:19]} {[%emt
00:00:16]} 22. Qxa5 {[%clk 00:40:14]} {[%emt 00:00:08]} Nxf4 {[%clk 01:09:36]}
{[%emt 00:00:13]} 23. Bc4 {[%clk 00:40:32]} {[%emt 00:00:12]} Rfc8 {[%clk
01:04:56]} {[%emt 00:05:10]} 24. Rac1 {[%clk 00:28:47]} {[%emt 00:12:15]} Rb2
{[%clk 01:04:56]} {[%emt 00:00:29]} 25. Rf2 {[%clk 00:29:13]} {[%emt 00:00:05]}
Rxf2 {[%clk 01:03:00]} {[%emt 00:02:26]} 26. Kxf2 {[%clk 00:29:38]} {[%emt
00:00:04]} Nd3+ {[%clk 01:03:22]} {[%emt 00:00:09]} 27. Bxd3 {[%clk 00:30:05]}
{[%emt 00:00:03]} Rxc1 {[%clk 01:03:45]} {[%emt 00:00:07]} 28. Qxa7 {[%clk
00:30:29]} {[%emt 00:00:06]} Qe8 {[%clk 01:03:40]} {[%emt 00:00:35]} 29. Qb6
{[%clk 00:29:45]} {[%emt 00:01:14]} Rc3 {[%clk 01:02:39]} {[%emt 00:01:31]} 30.
Qa6 {[%clk 00:26:53]} {[%emt 00:03:22]} Bc8 {[%clk 01:01:25]} {[%emt 00:01:43]}
31. Bb5 {[%clk 00:25:46]} {[%emt 00:01:37]} Rc2+ {[%clk 01:01:01]} {[%emt
00:00:55]} 32. Kg1 {[%clk 00:25:50]} {[%emt 00:00:26]} Qg6 {[%clk 01:01:24]}
{[%emt 00:00:07]} 0-1

[Event "Polofinale MCR junioru 2023"]
[Site "Czech Republic"]
[Date "2023.11.18"]
[Round "9.8"]
[White "Pavlis, Matej"]
[Black "Ocelak, Jakub"]
[Result "1/2-1/2"]
[TimeControl "90 min per 40 moves + 15 min + 30 sec / move from move 1"]
[WhiteFideId "23735767"]
[BlackFideId "23707933"]
[WhiteElo "1974"]
[BlackElo "2238"]

1. Nf3 {[%clk 01:30:58]} {[%emt 00:00:02]} g6 {[%clk 01:30:34]} {[%emt
00:00:27]} 2. c4 {[%clk 01:30:59]} {[%emt 00:00:28]} Bg7 {[%clk 01:30:55]}
{[%emt 00:00:08]} 3. g3 {[%clk 01:31:14]} {[%emt 00:00:16]} e5 {[%clk
01:30:17]} {[%emt 00:01:08]} 4. d3 {[%clk 01:31:07]} {[%emt 00:00:38]} Nc6
{[%clk 01:30:32]} {[%emt 00:00:15]} 5. Bg2 {[%clk 01:30:24]} {[%emt 00:01:12]}
d6 {[%clk 01:30:55]} {[%emt 00:00:07]} 6. Nc3 {[%clk 01:30:16]} {[%emt
00:00:38]} f5 {[%clk 01:31:16]} {[%emt 00:00:08]} 7. O-O {[%clk 01:27:57]}
{[%emt 00:02:50]} Nf6 {[%clk 01:31:41]} {[%emt 00:00:05]} 8. Rb1 {[%clk
01:27:14]} {[%emt 00:01:13]} O-O {[%clk 01:29:06]} {[%emt 00:03:06]} 9. b4
{[%clk 01:26:28]} {[%emt 00:01:15]} h6 {[%clk 01:29:22]} {[%emt 00:00:12]} 10.
b5 {[%clk 01:24:14]} {[%emt 00:02:46]} Ne7 {[%clk 01:29:50]} {[%emt 00:00:02]}
11. a4 {[%clk 01:18:13]} {[%emt 00:06:32]} a5 {[%clk 01:07:25]} {[%emt
00:22:54]} 12. Qc2 {[%clk 01:15:16]} {[%emt 00:03:27]} g5 {[%clk 01:06:37]}
{[%emt 00:01:18]} 13. Nd2 {[%clk 01:13:20]} {[%emt 00:02:26]} Ng6 {[%clk
01:02:46]} {[%emt 00:04:21]} 14. Nd5 {[%clk 01:08:43]} {[%emt 00:05:07]} Nxd5
{[%clk 00:47:48]} {[%emt 00:15:24]} 15. Bxd5+ {[%clk 01:09:05]} {[%emt
00:00:12]} Kh8 {[%clk 00:48:17]} {[%emt 00:00:01]} 16. Ba3 {[%clk 01:09:03]}
{[%emt 00:00:32]} Rf6 {[%clk 00:43:45]} {[%emt 00:05:02]} 17. Bg2 {[%clk
00:58:47]} {[%emt 00:10:47]} h5 {[%clk 00:40:34]} {[%emt 00:03:41]} 18. e3
{[%clk 00:56:04]} {[%emt 00:03:12]} h4 {[%clk 00:39:18]} {[%emt 00:01:46]} 19.
Qd1 {[%clk 00:55:21]} {[%emt 00:01:13]} g4 {[%clk 00:35:43]} {[%emt 00:04:05]}
20. Bb2 {[%clk 00:48:37]} {[%emt 00:07:15]} Ne7 {[%clk 00:31:37]} {[%emt
00:04:35]} 21. c5 {[%clk 00:42:59]} {[%emt 00:06:08]} Rh6 {[%clk 00:30:49]}
{[%emt 00:01:17]} 22. Nc4 {[%clk 00:42:59]} {[%emt 00:00:30]} Ng6 {[%clk
00:28:41]} {[%emt 00:02:38]} 23. cxd6 {[%clk 00:31:03]} {[%emt 00:12:27]} cxd6
{[%clk 00:28:57]} {[%emt 00:00:14]} 24. f4 {[%clk 00:31:12]} {[%emt 00:00:21]}
gxf3 {[%clk 00:19:24]} {[%emt 00:10:03]} 25. Qxf3 {[%clk 00:29:32]} {[%emt
00:02:09]} Rb8 {[%clk 00:19:13]} {[%emt 00:00:42]} 26. b6 {[%clk 00:28:08]}
{[%emt 00:01:55]} Be6 {[%clk 00:17:42]} {[%emt 00:02:00]} 27. Nxa5 {[%clk
00:24:33]} {[%emt 00:04:05]} d5 {[%clk 00:16:28]} {[%emt 00:01:44]} 28. Rfc1
{[%clk 00:22:03]} {[%emt 00:03:00]} hxg3 {[%clk 00:09:45]} {[%emt 00:07:13]} 29.
hxg3 {[%clk 00:21:53]} {[%emt 00:00:40]} f4 {[%clk 00:09:03]} {[%emt 00:01:12]}
30. Rc7 {[%clk 00:20:26]} {[%emt 00:01:57]} fxe3 {[%clk 00:07:44]} {[%emt
00:01:50]} 31. Nxb7 {[%clk 00:18:53]} {[%emt 00:02:03]} Qg5 {[%clk 00:07:14]}
{[%emt 00:00:59]} 32. Nd6 {[%clk 00:19:11]} {[%emt 00:00:11]} Rf8 {[%clk
00:04:27]} {[%emt 00:03:18]} 33. Nf7+ {[%clk 00:17:15]} {[%emt 00:02:26]} Bxf7
{[%clk 00:04:47]} {[%emt 00:00:10]} 34. Rxf7 {[%clk 00:14:43]} {[%emt
00:03:02]} Rxf7 {[%clk 00:03:21]} {[%emt 00:01:56]} 35. Qxf7 {[%clk 00:15:11]}
{[%emt 00:00:02]} Qxg3 {[%clk 00:03:31]} {[%emt 00:00:20]} 36. b7 {[%clk
00:14:41]} {[%emt 00:01:01]} Qh2+ {[%clk 00:02:40]} {[%emt 00:01:20]} 37. Kf1
{[%clk 00:15:01]} {[%emt 00:00:11]} e2+ {[%clk 00:03:05]} {[%emt 00:00:05]} 38.
Kf2 {[%clk 00:13:29]} {[%emt 00:02:01]} Qh4+ {[%clk 00:01:55]} {[%emt
00:01:40]} 39. Kxe2 {[%clk 00:13:23]} {[%emt 00:00:38]} Nf4+ {[%clk 00:00:50]}
{[%emt 00:01:34]} 40. Kf1 {[%clk 00:12:43]} {[%emt 00:01:09]} Rb6 {[%clk
00:00:52]} {[%emt 00:00:29]} 41. Qxg7+ {[%clk 00:11:18]} {[%emt 00:01:56]} Kxg7
{[%clk 00:01:12]} {[%emt 00:00:08]} 42. Bxe5+ {[%clk 00:11:44]} {[%emt
00:00:05]} Kh7 {[%clk 00:15:34]} {[%emt 00:01:37]} 43. Rxb6 {[%clk 00:27:53]}
{[%emt 00:00:23]} Nxd3 {[%clk 00:15:35]} {[%emt 00:00:28]} 44. Ke2 {[%clk
00:26:08]} {[%emt 00:02:16]} Nxe5 {[%clk 00:07:01]} {[%emt 00:09:04]} 45. b8=Q
{[%clk 00:26:20]} {[%emt 00:00:17]} Qg4+ {[%clk 00:06:11]} {[%emt 00:01:19]} 46.
Ke1 {[%clk 00:21:42]} {[%emt 00:05:08]} Qh4+ {[%clk 00:03:19]} {[%emt
00:03:23]} 47. Kd1 {[%clk 00:21:08]} {[%emt 00:01:03]} Qd4+ {[%clk 00:03:34]}
{[%emt 00:00:16]} 48. Kc2 {[%clk 00:18:42]} {[%emt 00:02:56]} Qc4+ {[%clk
00:02:15]} {[%emt 00:01:49]} 49. Kb1 {[%clk 00:18:48]} {[%emt 00:00:21]} Qd3+
{[%clk 00:02:21]} {[%emt 00:00:27]} 50. Ka2 {[%clk 00:18:55]} {[%emt 00:00:22]}
Qc2+ {[%clk 00:02:33]} {[%emt 00:00:19]} 51. Rb2 {[%clk 00:19:15]} {[%emt
00:00:09]} Qxa4+ {[%clk 00:02:57]} {[%emt 00:00:07]} 52. Kb1 {[%clk 00:18:14]}
{[%emt 00:01:31]} Qd1+ {[%clk 00:03:20]} {[%emt 00:00:07]} 1/2-1/2

[Event "Polofinale MCR junioru 2023"]
[Site "Czech Republic"]
[Date "2023.11.18"]
[Round "9.9"]
[White "Prazak, Daniel"]
[Black "Fizer, Marek"]
[Result "1/2-1/2"]
[TimeControl "90 min per 40 moves + 15 min + 30 sec / move from move 1"]
[WhiteFideId "23709456"]
[BlackFideId "391980"]
[WhiteElo "2103"]
[BlackElo "2162"]

1. d4 {[%clk 01:21:34]} {[%emt 00:09:18]} d5 {[%clk 01:30:45]} {[%emt
00:00:21]} 2. Nf3 {[%clk 01:20:43]} {[%emt 00:01:21]} e6 {[%clk 01:30:57]}
{[%emt 00:00:18]} 3. Bf4 {[%clk 01:18:39]} {[%emt 00:02:35]} Nf6 {[%clk
01:30:13]} {[%emt 00:01:14]} 4. e3 {[%clk 01:18:32]} {[%emt 00:00:36]} Be7
{[%clk 01:28:18]} {[%emt 00:02:26]} 5. h3 {[%clk 01:18:11]} {[%emt 00:00:51]}
c6 {[%clk 01:27:47]} {[%emt 00:01:01]} 6. Nbd2 {[%clk 01:18:07]} {[%emt
00:00:34]} Nbd7 {[%clk 01:26:39]} {[%emt 00:01:37]} 7. Bd3 {[%clk 01:17:51]}
{[%emt 00:00:45]} b6 {[%clk 01:24:47]} {[%emt 00:02:24]} 8. c3 {[%clk
01:17:34]} {[%emt 00:00:47]} Bb7 {[%clk 01:21:53]} {[%emt 00:03:24]} 9. O-O
{[%clk 01:17:05]} {[%emt 00:00:57]} O-O {[%clk 01:20:04]} {[%emt 00:02:20]} 10.
Ne5 {[%clk 01:16:59]} {[%emt 00:00:37]} h6 {[%clk 01:10:22]} {[%emt 00:10:11]}
11. Ndf3 {[%clk 01:16:21]} {[%emt 00:01:08]} Nxe5 {[%clk 01:03:05]} {[%emt
00:07:47]} 12. Nxe5 {[%clk 01:16:39]} {[%emt 00:00:12]} Nd7 {[%clk 01:02:19]}
{[%emt 00:01:17]} 13. Nxd7 {[%clk 01:11:29]} {[%emt 00:05:40]} Qxd7 {[%clk
01:02:42]} {[%emt 00:00:07]} 14. Qg4 {[%clk 01:10:27]} {[%emt 00:01:32]} f5
{[%clk 00:57:30]} {[%emt 00:05:41]} 15. Qe2 {[%clk 01:10:20]} {[%emt 00:00:37]}
Bf6 {[%clk 00:55:38]} {[%emt 00:02:23]} 16. Bh2 {[%clk 01:04:17]} {[%emt
00:06:33]} c5 {[%clk 00:52:57]} {[%emt 00:03:11]} 17. Rad1 {[%clk 01:01:52]}
{[%emt 00:02:56]} c4 {[%clk 00:50:52]} {[%emt 00:02:35]} 18. Bc2 {[%clk
00:59:28]} {[%emt 00:02:53]} b5 {[%clk 00:48:16]} {[%emt 00:03:07]} 19. Qh5
{[%clk 00:54:27]} {[%emt 00:05:30]} Qf7 {[%clk 00:43:52]} {[%emt 00:04:54]} 20.
Qxf7+ {[%clk 00:54:26]} {[%emt 00:00:31]} Kxf7 {[%clk 00:43:43]} {[%emt
00:00:40]} 21. f3 {[%clk 00:53:17]} {[%emt 00:01:38]} g6 {[%clk 00:40:28]}
{[%emt 00:03:44]} 1/2-1/2

[Event "Polofinale MCR junioru 2023"]
[Site "Czech Republic"]
[Date "2023.11.18"]
[Round "9.10"]
[White "Lang, Simon"]
[Black "Hlavina, Matous"]
[Result "0-1"]
[TimeControl "90 min per 40 moves + 15 min + 30 sec / move from move 1"]
[WhiteFideId "23712449"]
[BlackFideId "386650"]
[WhiteElo "2090"]
[BlackElo "2134"]

1. e4 {[%clk 01:27:22]} {[%emt 00:03:37]} c5 {[%clk 01:30:54]} {[%emt
00:00:06]} 2. Nf3 {[%clk 01:27:32]} {[%emt 00:00:20]} d6 {[%clk 01:31:17]}
{[%emt 00:00:07]} 3. d4 {[%clk 01:27:50]} {[%emt 00:00:12]} cxd4 {[%clk
01:31:45]} {[%emt 00:00:03]} 4. Nxd4 {[%clk 01:28:10]} {[%emt 00:00:09]} Nf6
{[%clk 01:32:12]} {[%emt 00:00:03]} 5. Nc3 {[%clk 01:28:15]} {[%emt 00:00:26]}
g6 {[%clk 01:32:36]} {[%emt 00:00:05]} 6. Be3 {[%clk 01:27:29]} {[%emt
00:01:15]} Bg7 {[%clk 01:32:58]} {[%emt 00:00:08]} 7. Bc4 {[%clk 01:26:46]}
{[%emt 00:01:14]} a6 {[%clk 01:31:45]} {[%emt 00:01:43]} 8. f3 {[%clk
01:23:02]} {[%emt 00:04:14]} h5 {[%clk 01:31:07]} {[%emt 00:01:07]} 9. Qd2
{[%clk 01:21:54]} {[%emt 00:01:39]} Nbd7 {[%clk 01:30:40]} {[%emt 00:00:57]} 10.
O-O-O {[%clk 01:19:50]} {[%emt 00:02:34]} b5 {[%clk 01:28:58]} {[%emt
00:02:12]} 11. Bd5 {[%clk 01:17:32]} {[%emt 00:02:49]} Nxd5 {[%clk 01:27:59]}
{[%emt 00:01:28]} 12. exd5 {[%clk 01:17:49]} {[%emt 00:00:13]} Bb7 {[%clk
01:26:39]} {[%emt 00:01:51]} 13. Bg5 {[%clk 01:15:04]} {[%emt 00:03:15]} Nf6
{[%clk 01:20:15]} {[%emt 00:06:52]} 14. a3 {[%clk 01:09:56]} {[%emt 00:05:38]}
Rc8 {[%clk 01:18:57]} {[%emt 00:01:48]} 15. Rhe1 {[%clk 01:02:49]} {[%emt
00:07:37]} O-O {[%clk 01:11:36]} {[%emt 00:07:51]} 16. f4 {[%clk 01:00:51]}
{[%emt 00:02:29]} Rc4 {[%clk 00:58:19]} {[%emt 00:13:47]} 17. Qe3 {[%clk
00:50:15]} {[%emt 00:11:06]} Re8 {[%clk 00:50:18]} {[%emt 00:08:30]} 18. f5
{[%clk 00:45:02]} {[%emt 00:05:44]} Ng4 {[%clk 00:47:31]} {[%emt 00:03:17]} 19.
Qg1 {[%clk 00:44:47]} {[%emt 00:00:45]} Rxc3 {[%clk 00:39:07]} {[%emt
00:08:55]} 20. bxc3 {[%clk 00:45:09]} {[%emt 00:00:07]} Qa5 {[%clk 00:38:56]}
{[%emt 00:00:40]} 21. fxg6 {[%clk 00:43:18]} {[%emt 00:02:23]} Qxa3+ {[%clk
00:35:35]} {[%emt 00:03:50]} 22. Kd2 {[%clk 00:43:40]} {[%emt 00:00:08]} fxg6
{[%clk 00:29:52]} {[%emt 00:06:13]} 23. Rxe7 {[%clk 00:39:59]} {[%emt
00:04:11]} Rxe7 {[%clk 00:27:55]} {[%emt 00:02:27]} 24. Bxe7 {[%clk 00:39:54]}
{[%emt 00:00:35]} b4 {[%clk 00:27:50]} {[%emt 00:00:35]} 25. Ke2 {[%clk
00:32:54]} {[%emt 00:07:31]} Bxd5 {[%clk 00:25:58]} {[%emt 00:02:21]} 26. Bxd6
{[%clk 00:31:50]} {[%emt 00:01:34]} Qxc3 {[%clk 00:24:31]} {[%emt 00:01:57]}
0-1